bitfinex-derivatives/quotes_BTCF0:USTF0_20251115
["timestamp","ask_amount","ask_price","bid_price","bid_amount"]
[1763226135850,0.04451,96273.0,96272.0,0.04488]
[1763226136137,0.04451,96273.0,96272.0,0.02319]
[1763226136340,0.04451,96273.0,96266.0,0.00015581]
[1763226136341,0.04451,96271.0,96266.0,0.00015581]
[1763226138534,0.04451,96267.0,96266.0,0.02334581]
[1763226138739,0.04451,96267.0,96266.0,0.00015581]
[1763226139346,0.04451,96267.0,96253.0,0.3608]
[1763226139347,0.04451,96254.0,96253.0,0.3608]
[1763226139542,0.04451,96245.0,96244.0,0.04488]
[1763226141446,0.04451,96245.0,96244.0,0.04588]
[1763226142248,0.04451,96245.0,96244.0,0.04688]
[1763226142744,0.04451,96245.0,96244.0,0.04588]
[1763226143046,0.00015553,96254.0,96253.0,0.04488]
[1763226143047,0.04466553,96254.0,96253.0,0.04488]
[1763226149747,0.04547,96252.0,96251.0,0.3608]
[1763226150252,0.04547,96252.0,96251.0,0.3841]
[1763226150449,0.00015553,96254.0,96240.0,0.12154409]
[1763226150450,0.01223,96245.0,96240.0,0.12154409]
[1763226150654,0.01223,96245.0,96235.0,0.00015581]
[1763226150655,0.04547,96236.0,96235.0,0.02345581]
[1763226150846,0.04547,96236.0,96235.0,0.00015581]
[1763226151155,0.40627,96236.0,96235.0,0.00015581]
[1763226151354,0.04547,96223.0,96220.0,0.12154409]
[1763226151651,0.04547,96223.0,96222.0,0.3841]
[1763226151950,0.04547,96223.0,96222.0,0.40659]
[1763226152355,0.04547,96223.0,96222.0,0.3608]
[1763226152554,0.01136,96225.0,96213.0,0.40674581]
[1763226152555,0.04547,96214.0,96213.0,0.40674581]
[1763226152752,0.04547,96214.0,96213.0,0.36095581]
[1763226152956,0.04547,96214.0,96213.0,0.40674581]
[1763226154354,0.04547,96214.0,96213.0,0.04594581]
[1763226154757,0.40627,96214.0,96213.0,0.00015581]
[1763226155359,0.40627,96214.0,96213.0,0.02345581]
[1763226155551,0.40627,96214.0,96213.0,0.00015581]
[1763226156752,0.04547,96207.0,96200.0,0.12154409]
[1763226159159,0.04547,96207.0,96197.0,0.0001559]
[1763226159660,0.04547,96207.0,96197.0,0.12169999]
[1763226162160,0.04547,96207.0,96206.0,0.04604986]
[1763226162856,0.04547,96207.0,96206.0,0.00025986]
[1763226163055,0.05656,96198.0,96197.0,0.0001559]
[1763226163255,0.05656,96198.0,96174.0,0.3608]
[1763226163256,0.05896,96192.0,96180.0,0.12154409]
[1763226164158,0.05896,96192.0,96182.0,0.0001559]
[1763226164354,0.05796,96192.0,96182.0,0.0001559]
[1763226164750,0.04547,96183.0,96182.0,0.0001559]
[1763226165663,0.04547,96183.0,96182.0,0.0459459]
[1763226166257,0.04547,96183.0,96182.0,0.0001559]
[1763226167863,0.045556,96183.0,96182.0,0.0001559]
[1763226176570,0.045556,96183.0,96182.0,0.0234559]
[1763226176878,0.045556,96183.0,96182.0,0.0001559]
[1763226178874,0.045556,96183.0,96182.0,0.0234559]
[1763226179075,0.045556,96183.0,96182.0,0.0001559]
[1763226180475,0.045556,96183.0,96182.0,0.0220059]
[1763226180877,0.045556,96183.0,96182.0,0.0001559]
[1763226181475,0.045556,96183.0,96182.0,0.0433959]
[1763226181781,0.045576,96183.0,96182.0,0.0433959]
[1763226181975,8.6e-05,96183.0,96182.0,0.0433959]
[1763226183681,0.40609,96198.0,96197.0,0.04324]
[1763226184383,0.40609,96198.0,96192.0,0.00833]
[1763226184384,0.00219803,96200.0,96199.0,0.04324]
[1763226184686,0.04748803,96200.0,96199.0,0.04324]
[1763226186183,0.04529,96183.0,96182.0,0.0220059]
[1763226186383,0.40609,96183.0,96182.0,0.0433959]
[1763226186883,0.04529,96183.0,96182.0,0.0433959]
[1763226190184,0.3608,96191.0,96182.0,0.0433959]
[1763226190185,0.04529,96191.0,96190.0,0.04324]
[1763226190380,0.04529,96198.0,96197.0,0.04324]
[1763226190781,0.40828803,96200.0,96199.0,0.04324]
[1763226192280,0.04748803,96200.0,96199.0,0.04324]
[1763226194689,0.04848803,96200.0,96199.0,0.04324]
[1763226195989,0.001,96200.0,96199.0,0.04324]
[1763226199682,0.0001559,96201.0,96200.0,0.04492]
[1763226200585,0.0445559,96201.0,96200.0,0.04492]
[1763226201796,0.0444,96191.0,96190.0,0.07273517]
[1763226201990,0.0444,96191.0,96190.0,0.04492]
[1763226203283,0.0444,96188.0,96187.0,0.38374]
[1763226203494,0.0444,96188.0,96187.0,0.3608]
[1763226204692,0.0444,96188.0,96187.0,0.40572]
[1763226209195,0.00219803,96190.0,96189.0,0.04311]
[1763226210297,0.02373803,96190.0,96189.0,0.04311]
[1763226210899,0.04575803,96190.0,96189.0,0.04311]
[1763226211098,0.00219803,96190.0,96189.0,0.04311]
[1763226212094,0.44184372,96201.0,96200.0,0.04311]
[1763226213390,0.4045159,96201.0,96200.0,0.04311]
[1763226216396,0.3795328,96201.0,96200.0,0.04311]
[1763226219403,0.04356,96201.0,96200.0,0.04311]
[1763226223505,0.09961641,96201.0,96200.0,0.04311]
[1763226223702,0.04356,96201.0,96200.0,0.04311]
[1763226223902,0.09965974,96201.0,96200.0,0.04311]
[1763226224401,0.04356,96201.0,96200.0,0.04311]
[1763226229509,0.04356,96201.0,96200.0,0.05636]
[1763226230009,0.04356,96201.0,96200.0,0.04311]
[1763226232612,0.04356,96201.0,96200.0,0.0219]
[1763226232908,0.09965971,96201.0,96200.0,0.04311]
[1763226233416,0.04356,96193.0,96192.0,0.40391]
[1763226234412,0.02154,96193.0,96192.0,0.40391]
[1763226235616,0.44178297,96202.0,96201.0,0.04311]
[1763226236013,0.40436,96202.0,96201.0,0.04311]
[1763226239220,0.046,96191.0,96190.0,0.08592517]
[1763226240419,0.08345891,96197.0,96196.0,0.04486]
[1763226241324,0.046,96197.0,96196.0,0.04486]
[1763226243321,0.08345891,96197.0,96196.0,0.04486]
[1763226243628,0.046,96197.0,96196.0,0.04486]
[1763226244523,0.01284,96205.0,96198.0,0.04486]
[1763226244524,0.03745887,96199.0,96198.0,0.04486]
[1763226244820,0.046,96206.0,96205.0,0.05853]
[1763226245026,0.08345616,96206.0,96205.0,0.05853]
[1763226245326,0.046,96206.0,96205.0,0.05853]
[1763226246418,0.046,96206.0,96205.0,0.04486]
[1763226248225,0.046,96206.0,96205.0,0.05853]
[1763226251024,0.0001559,96210.0,96209.0,0.04486]
[1763226251222,0.0001559,96210.0,96209.0,0.40566]
[1763226252722,0.03742389,96223.0,96222.0,0.04367]
[1763226252922,0.03742389,96227.0,96220.0,0.0133]
[1763226253229,0.08160389,96227.0,96226.0,0.04367]
[1763226253530,0.04418,96227.0,96226.0,0.04367]
[1763226256327,0.04518,96227.0,96226.0,0.04367]
[1763226258124,0.001,96227.0,96226.0,0.04367]
[1763226258526,0.001,96227.0,96226.0,0.1476704]
[1763226258728,0.03738436,96238.0,96235.0,0.05697]
[1763226258923,0.0443359,96236.0,96235.0,0.05697]
[1763226260335,0.0463359,96236.0,96235.0,0.05697]
[1763226262337,0.0021559,96236.0,96235.0,0.05697]
[1763226262635,0.00025975,96246.0,96245.0,0.05092]
[1763226262825,0.00025975,96246.0,96245.0,0.41172]
[1763226265426,0.00015562,96255.0,96254.0,0.04367]
[1763226265632,0.02165562,96255.0,96254.0,0.40447]
[1763226265830,0.00015562,96255.0,96254.0,0.40447]
[1763226266540,0.02165562,96255.0,96254.0,0.40447]
[1763226267631,0.04433562,96255.0,96254.0,0.40447]
[1763226271140,0.00015562,96255.0,96254.0,0.40447]
[1763226271732,0.04439,96266.0,96265.0,0.04503]
[1763226271934,0.04439,96266.0,96265.0,0.40583]
[1763226272741,0.04439,96266.0,96265.0,0.41953]
[1763226274240,0.0105795,96276.0,96265.0,0.41953]
[1763226274442,0.44237259,96282.0,96281.0,0.04503]
[1763226274633,0.40519,96282.0,96281.0,0.04503]
[1763226275039,0.04439,96282.0,96281.0,0.04503]
[1763226281433,0.02205,96282.0,96281.0,0.04503]
[1763226281938,0.04464964,96286.0,96285.0,0.05833]
[1763226282247,0.04464964,96286.0,96285.0,0.41913]
[1763226284650,0.04464964,96286.0,96285.0,0.04503]
[1763226284846,0.04439,96277.0,96276.0,0.02323]
[1763226285147,0.05706,96275.0,96274.0,0.40583]
[1763226285534,0.04439,96275.0,96274.0,0.40583]
[1763226287942,0.05333,96275.0,96274.0,0.40583]
[1763226288341,0.05333,96275.0,96274.0,0.3608]
[1763226288947,0.04439,96273.0,96272.0,0.04518581]
[1763226289549,0.04439,96273.0,96272.0,0.00015581]
[1763226289855,0.04439,96251.0,96250.0,0.1804537]
[1763226290046,0.04439,96251.0,96250.0,0.05873]
[1763226290556,0.04439,96251.0,96250.0,0.04503]
[1763226297953,0.04401,96259.0,96258.0,0.05712]
[1763226298354,0.00235356,96260.0,96259.0,0.04384]
[1763226300459,0.02295553,96260.0,96259.0,0.04384]
[1763226300850,0.00015553,96260.0,96259.0,0.04384]
[1763226301158,0.02295553,96260.0,96259.0,0.04384]
[1763226301545,0.00235356,96260.0,96259.0,0.04384]
[1763226301750,0.00015553,96260.0,96259.0,0.04384]
[1763226302557,0.04636356,96260.0,96259.0,0.04384]
[1763226306758,0.04401,96255.0,96254.0,0.40464]
[1763226307560,0.04401,96255.0,96254.0,0.04384]
[1763226307862,0.04401,96255.0,96254.0,0.02131]
[1763226308355,0.01288,96257.0,96245.0,0.3608]
[1763226308356,0.04401,96246.0,96245.0,0.40464]
[1763226313953,0.08130062,96246.0,96245.0,0.40464]
[1763226314167,0.04401,96246.0,96245.0,0.40464]
[1763226315367,0.08130062,96246.0,96245.0,0.40464]
[1763226316068,0.04401,96246.0,96245.0,0.40464]
[1763226318870,0.04401,96246.0,96245.0,0.41838]
[1763226322178,0.04401,96246.0,96245.0,0.40464]
[1763226323777,0.05457364,96246.0,96245.0,0.40464]
[1763226324074,0.04401,96246.0,96245.0,0.04384]
[1763226324468,0.04423,96242.0,96241.0,0.02229581]
[1763226324667,0.04423,96242.0,96241.0,0.00015581]
[1763226324668,0.10016593,96242.0,96241.0,0.00015581]
[1763226324877,0.10016593,96242.0,96241.0,0.04331581]
[1763226324878,0.04423,96242.0,96241.0,0.04331581]
[1763226325867,0.04423,96242.0,96241.0,0.00015581]
[1763226326072,0.04423,96225.0,96224.0,0.40396]
[1763226331875,0.00219803,96220.0,96215.0,0.00015581]
[1763226332077,0.0447,96216.0,96215.0,0.02283581]
[1763226332276,0.0447,96216.0,96215.0,0.04523581]
[1763226332576,0.05845,96216.0,96215.0,0.04523581]
[1763226334278,0.0447,96216.0,96215.0,0.04523581]
[1763226340083,0.00219803,96220.0,96215.0,0.01362581]
[1763226340279,0.00219803,96220.0,96219.0,0.04508]
[1763226340982,0.02513803,96220.0,96219.0,0.04508]
[1763226341485,0.00219803,96220.0,96219.0,0.04508]
[1763226341679,0.02513803,96220.0,96219.0,0.04508]
[1763226342473,0.4055,96227.0,96226.0,0.04508]
[1763226342681,0.02513803,96230.0,96229.0,0.04508]
[1763226342982,0.04689803,96230.0,96229.0,0.04508]
[1763226345876,0.00219803,96230.0,96229.0,0.04508]
[1763226347078,0.3608,96239.0,96233.0,0.04508]
[1763226347287,0.02309581,96234.0,96233.0,0.04508]
[1763226347784,0.04485581,96234.0,96233.0,0.04508]
[1763226348478,0.00015581,96234.0,96233.0,0.04508]
[1763226348681,0.00015581,96234.0,96233.0,0.40588]
[1763226354277,0.04485581,96234.0,96233.0,0.04508]
[1763226354576,0.04485581,96234.0,96233.0,0.02268]
[1763226354783,0.0447,96231.0,96230.0,0.02414535]
[1763226355082,0.0447,96231.0,96230.0,0.04654535]
[1763226355881,0.08207813,96231.0,96230.0,0.00146535]
[1763226356277,0.08207813,96231.0,96230.0,0.02414535]
[1763226356482,0.0447,96231.0,96230.0,0.04654535]
[1763226357483,0.0447,96231.0,96230.0,0.02414535]
[1763226357689,0.04811,96225.0,96224.0,0.40588]
[1763226360794,0.0447,96225.0,96224.0,0.40588]
[1763226367500,0.10076719,96225.0,96224.0,0.40588]
[1763226368204,0.0447,96225.0,96224.0,0.40588]
[1763226368398,0.10076374,96225.0,96224.0,0.40588]
[1763226369003,0.0447,96225.0,96224.0,0.40588]
[1763226370003,0.05749,96225.0,96224.0,0.04508]
[1763226370203,0.04556,96221.0,96220.0,0.00219803]
[1763226370400,0.04556,96221.0,96220.0,0.02511803]
[1763226371303,0.04556,96221.0,96220.0,0.00219803]
[1763226371695,0.04556,96221.0,96215.0,0.00015581]
[1763226371696,0.40636,96221.0,96215.0,0.00015581]
[1763226371902,0.04322,96216.0,96215.0,0.00015581]
[1763226372102,0.04322,96207.0,96206.0,0.04610986]
[1763226372303,0.40402,96207.0,96206.0,0.04610986]
[1763226373603,0.44137417,96207.0,96206.0,0.04610986]
[1763226374208,0.40402,96207.0,96206.0,0.04610986]
[1763226374608,0.40402,96207.0,96206.0,0.00025986]
[1763226379923,0.40402,96207.0,96206.0,0.02292986]
[1763226380214,0.40402,96207.0,96206.0,0.04610986]
[1763226380411,0.3608,96207.0,96206.0,0.04610986]
[1763226381019,0.00073267,96210.0,96206.0,0.04610986]
[1763226381223,0.00073267,96210.0,96209.0,0.04585]
[1763226381427,0.04322,96224.0,96223.0,0.04585]
[1763226382920,0.02131,96224.0,96223.0,0.04585]
[1763226383827,0.3608,96225.0,96224.0,0.04585]
[1763226384015,0.38211,96225.0,96224.0,0.04585]
[1763226384424,0.40402,96225.0,96224.0,0.04585]
[1763226384817,0.3608,96225.0,96224.0,0.04585]
[1763226385934,0.38211,96225.0,96224.0,0.04585]
[1763226386223,0.40402,96225.0,96224.0,0.04585]
[1763226394833,0.04448,96221.0,96220.0,0.04711803]
[1763226399531,0.04448,96221.0,96220.0,0.00219803]
[1763226400533,0.03735417,96222.0,96211.0,0.12168397]
[1763226400534,0.05623,96215.0,96211.0,0.12168397]
[1763226400736,0.04448,96207.0,96206.0,0.04517986]
[1763226400935,0.04448,96207.0,96206.0,0.00025986]
[1763226401135,0.04448,96198.0,96197.0,0.0001559]
[1763226401334,0.40528,96198.0,96197.0,0.0001559]
[1763226401732,0.04448,96196.0,96195.0,0.00012325]
[1763226402237,0.04448,96189.0,96188.0,0.02221]
[1763226402442,0.40528,96189.0,96188.0,0.02221]
[1763226403043,0.40536951,96189.0,96188.0,0.02221]
[1763226403943,0.40536951,96189.0,96188.0,0.02321]
[1763226404538,0.40536951,96189.0,96188.0,0.04592]
[1763226405236,0.40536951,96189.0,96188.0,0.02321]
[1763226405438,0.40536951,96189.0,96188.0,0.04592]
[1763226405944,0.40536951,96189.0,96188.0,0.02321]
[1763226406145,0.40536951,96189.0,96188.0,0.001]
[1763226406936,0.04456951,96189.0,96188.0,0.001]
[1763226407742,0.04456951,96189.0,96188.0,0.02321]
[1763226408246,0.04456951,96189.0,96188.0,0.04592]
[1763226412343,8.951e-05,96189.0,96188.0,0.04592]
[1763226420550,0.40427,96205.0,96204.0,0.04435]
[1763226420749,0.3608,96205.0,96204.0,0.04435]
[1763226421347,0.0001559,96207.0,96206.0,0.04435]
[1763226422450,0.03732809,96223.0,96210.0,0.00219803]
[1763226422747,0.04347,96223.0,96222.0,0.04435]
[1763226426954,0.0001559,96232.0,96231.0,0.04435]
[1763226427851,0.04372975,96246.0,96245.0,0.04435]
[1763226428869,0.05651975,96246.0,96245.0,0.04435]
[1763226429848,0.04347,96241.0,96240.0,0.04654803]
[1763226430049,0.04347,96212.0,96211.0,0.04435]
[1763226431354,0.04347,96212.0,96211.0,0.02307]
[1763226431559,0.04602,96211.0,96210.0,0.00219803]
[1763226432155,0.04502,96211.0,96210.0,0.00219803]
[1763226432358,0.04502,96211.0,96210.0,0.02427803]
[1763226432550,0.04502,96211.0,96210.0,0.04578803]
[1763226432951,0.04502,96211.0,96210.0,0.02427803]
[1763226434153,0.04502,96211.0,96210.0,0.04578803]
[1763226435054,0.04502,96211.0,96210.0,0.00219803]
[1763226435362,0.04502,96211.0,96210.0,0.02427803]
[1763226436050,0.3608,96214.0,96202.0,0.0437459]
[1763226436051,0.04602,96203.0,96202.0,0.0437459]
[1763226437951,0.04602,96203.0,96202.0,0.0001559]
[1763226438750,0.04602,96189.0,96188.0,0.40439]
[1763226439156,0.00219803,96190.0,96189.0,0.04359]
[1763226440157,0.04821803,96190.0,96189.0,0.04359]
[1763226441662,0.04602,96181.0,96180.0,0.4170859]
[1763226442554,0.05624177,96181.0,96180.0,0.4045459]
[1763226442861,0.40682,96181.0,96180.0,0.0437459]
[1763226443256,0.41726661,96181.0,96180.0,0.0447459]
[1763226443456,0.41726661,96181.0,96180.0,0.0457459]
[1763226443956,0.40682,96181.0,96180.0,0.0457459]
[1763226446856,0.3608,96181.0,96180.0,0.0588259]
[1763226447057,0.40682,96181.0,96180.0,0.0021559]
[1763226448957,0.04422,96176.0,96166.0,0.00025997]
[1763226449158,0.04422,96167.0,96166.0,0.00025997]
[1763226449359,0.40502,96167.0,96166.0,0.00025997]
[1763226450064,0.04322,96151.0,96150.0,0.04636]
[1763226450365,0.04222,96151.0,96150.0,0.04636]
[1763226451060,0.01312,96160.0,96149.0,0.3608]
[1763226451061,0.04641803,96150.0,96149.0,0.3608]
[1763226452464,0.04441803,96150.0,96149.0,0.3608]
[1763226453565,0.04441803,96150.0,96141.0,0.04651598]
[1763226453566,0.04422,96142.0,96141.0,0.04651598]
[1763226454359,0.04422,96142.0,96141.0,0.00015598]
[1763226454559,0.40502,96142.0,96141.0,0.00015598]
[1763226454759,0.05734,96136.0,96132.0,7.916e-05]
[1763226458864,0.05734,96136.0,96135.0,0.05104089]
[1763226459066,0.04422,96136.0,96135.0,0.05104089]
[1763226459569,0.05734,96136.0,96135.0,0.02787089]
[1763226459767,0.05734,96136.0,96135.0,0.00468089]
[1763226462862,0.04422,96136.0,96135.0,0.05104089]
[1763226463266,0.04422,96136.0,96135.0,0.00468089]
[1763226469168,0.04422,96136.0,96135.0,0.05104089]
[1763226470175,0.04422,96136.0,96135.0,0.00468089]
[1763226472178,0.04422,96136.0,96135.0,0.02787089]
[1763226472476,0.04422,96136.0,96135.0,0.05104089]
[1763226473678,0.04422,96136.0,96135.0,0.00468089]
[1763226476170,0.04422,96136.0,96135.0,0.02787089]
[1763226476771,0.04422,96136.0,96135.0,0.05104089]
[1763226480377,0.04422,96136.0,96135.0,0.00468089]
[1763226481277,0.04422,96136.0,96135.0,0.02789089]
[1763226481482,0.04422,96136.0,96135.0,0.00468089]
[1763226483182,0.04262,96133.0,96132.0,7.916e-05]
[1763226483381,0.04262,96127.0,96126.0,0.00036445]
[1763226483682,0.40342,96127.0,96126.0,0.00036445]
[1763226484686,0.44087575,96127.0,96126.0,0.00036445]
[1763226485273,0.40342,96127.0,96126.0,0.00036445]
[1763226486583,0.04262,96119.0,96117.0,0.02790477]
[1763226486780,0.04262,96112.0,96110.0,0.02790477]
[1763226487080,0.04262,96097.0,96096.0,0.02790477]
[1763226487382,0.05634,96096.0,96087.0,0.02790477]
[1763226487683,0.04262,96096.0,96095.0,0.05026284]
[1763226488782,0.05634,96096.0,96095.0,0.00468284]
[1763226490381,0.04262,96087.0,96086.0,0.00026018]
[1763226490576,0.04271874,96087.0,96086.0,0.00026018]
[1763226490975,0.04271874,96087.0,96086.0,0.04584018]
[1763226491774,9.874e-05,96087.0,96086.0,0.04584018]
[1763226493072,0.0009307,96090.0,96089.0,0.05705]
[1763226498497,0.00015606,96105.0,96104.0,0.0431]
[1763226498686,0.00015606,96105.0,96104.0,0.4039]
[1763226498883,0.3608,96116.0,96115.0,0.0431]
[1763226499187,0.40386,96116.0,96115.0,0.0431]
[1763226500483,0.04306,96111.0,96110.0,0.0451]
[1763226500681,0.04306,96105.0,96104.0,0.02117]
[1763226500986,0.04306,96097.0,96096.0,0.0431]
[1763226501181,0.40386,96097.0,96096.0,0.0431]
[1763226502173,0.05607,96096.0,96095.0,0.00015606]
[1763226502776,0.04306,96096.0,96095.0,0.04325606]
[1763226502985,0.0009307,96100.0,96099.0,0.0431]
[1763226503781,0.11444462,96150.0,96096.0,0.01395]
[1763226503782,0.03744179,96122.0,96121.0,0.02117]
[1763226503990,0.02165,96124.0,96123.0,0.0431]
[1763226504190,0.05909179,96124.0,96123.0,0.0431]
[1763226504381,0.08050179,96124.0,96123.0,0.0431]
[1763226505079,0.05909179,96124.0,96123.0,0.0431]
[1763226505279,0.02465,96124.0,96123.0,0.0431]
[1763226505478,0.04606,96124.0,96123.0,0.0431]
[1763226507783,0.003,96124.0,96123.0,0.0431]
[1763226507979,0.003,96124.0,96123.0,0.4039]
[1763226508379,0.02465,96124.0,96123.0,0.4039]
[1763226510288,0.02465,96124.0,96120.0,0.00219803]
[1763226510289,0.04567,96121.0,96120.0,0.00219803]
[1763226510477,0.04567,96121.0,96120.0,0.02520803]
[1763226510887,0.04567,96121.0,96120.0,0.00219803]
[1763226511490,0.002,96121.0,96120.0,0.06027803]
[1763226513390,0.00015606,96133.0,96132.0,0.04424]
[1763226514681,0.00215606,96133.0,96132.0,0.04424]
[1763226518786,0.04567,96131.0,96130.0,0.00219803]
[1763226519191,0.02329,96121.0,96120.0,0.05808]
[1763226519395,0.02329,96121.0,96120.0,0.06027803]
[1763226520293,0.04567,96121.0,96120.0,0.02520803]
[1763226520489,0.04567,96121.0,96120.0,0.00219803]
[1763226520789,0.04567,96121.0,96120.0,0.04643803]
[1763226521595,0.04567,96115.0,96114.0,0.04439606]
[1763226521892,0.44380592,96115.0,96114.0,0.04439606]
[1763226522290,0.40647,96115.0,96114.0,0.04439606]
[1763226523090,0.44381652,96115.0,96114.0,0.04439606]
[1763226523292,0.40647,96115.0,96114.0,0.04439606]
[1763226525901,0.04567,96097.0,96096.0,0.05808]
[1763226526096,0.40647,96097.0,96096.0,0.05808]
[1763226526293,0.40647,96097.0,96096.0,0.02301]
[1763226526490,0.04567,96089.0,96088.0,0.04424]
[1763226526695,0.04567,96089.0,96088.0,0.05808]
[1763226526696,0.40647,96089.0,96088.0,0.05808]
[1763226526891,0.38409,96089.0,96088.0,0.05808]
[1763226527293,0.38409,96089.0,96088.0,0.0182432]
[1763226527294,0.40647,96089.0,96088.0,0.0182432]
[1763226527497,0.04567,96087.0,96079.0,0.00015606]
[1763226527699,0.0830452,96087.0,96079.0,0.00015606]
[1763226527902,0.05951,96080.0,96079.0,0.00015606]
[1763226528202,0.05951,96080.0,96068.0,0.00012088]
[1763226528203,0.04567,96069.0,96068.0,0.00012088]
[1763226528514,0.05951,96056.0,96040.0,0.01384]
[1763226528690,0.40647,96056.0,96055.0,0.04892479]
[1763226528996,0.3608,96056.0,96055.0,0.04892479]
[1763226529189,0.40647,96056.0,96055.0,0.04892479]
[1763226529594,0.40657681,96056.0,96055.0,0.04892479]
[1763226530102,0.40657681,96056.0,96055.0,0.05092479]
[1763226530603,0.36090681,96056.0,96055.0,0.001]
[1763226530802,0.36090681,96056.0,96046.0,0.00026029]
[1763226530803,0.04467,96047.0,96046.0,0.00026029]
[1763226531098,0.40556428,96047.0,96015.0,0.00468674]
[1763226531303,0.40647,96020.0,96019.0,0.04424]
[1763226531602,0.40658829,96020.0,96019.0,0.04424]
[1763226532201,0.04567,96016.0,96015.0,0.02769674]
[1763226532694,0.04567,96016.0,96015.0,0.04892674]
[1763226532899,0.3598,96018.0,96017.0,0.04424]
[1763226533106,0.3588,96018.0,96017.0,0.04424]
[1763226534307,0.38209,96018.0,96017.0,0.04424]
[1763226534499,0.3588,96018.0,96017.0,0.04424]
[1763226535703,0.04567,96016.0,96015.0,0.00468674]
[1763226535909,0.04567,96016.0,96015.0,0.04892674]
[1763226536208,0.04567,96016.0,96015.0,0.00468674]
[1763226538913,0.04644,96001.0,96000.0,0.04534795]
[1763226539212,0.04644,96001.0,96000.0,0.02309795]
[1763226539213,0.40732945,96001.0,96000.0,0.02309795]
[1763226539407,0.40732945,96001.0,96000.0,8.795e-05]
[1763226539909,0.36088945,96001.0,96000.0,0.06005598]
[1763226540105,0.36088945,96001.0,96000.0,0.06105598]
[1763226540409,0.40650945,96001.0,96000.0,0.04717598]
[1763226540804,0.40650945,96001.0,96000.0,0.00328598]
[1763226541005,0.40650945,96001.0,96000.0,0.00108795]
[1763226541512,0.40650945,96001.0,96000.0,0.00208795]
[1763226541710,0.40650945,96001.0,96000.0,0.05740598]
[1763226541917,0.36088945,96001.0,96000.0,0.05740598]
[1763226542113,0.40650945,96001.0,96000.0,0.04817598]
[1763226543118,0.40650945,96001.0,96000.0,0.04717598]
[1763226543308,0.40650945,96001.0,96000.0,0.04617598]
[1763226545016,0.36088945,96001.0,96000.0,0.04617598]
[1763226545410,0.38335945,96001.0,96000.0,0.04617598]
[1763226546610,0.40650945,96001.0,96000.0,0.04617598]
[1763226549706,0.40650945,96001.0,96000.0,8.795e-05]
[1763226549913,0.40650945,96001.0,95980.0,0.01384]
[1763226550113,0.40642,95981.0,95980.0,0.04608803]
[1763226550714,0.40642,95981.0,95975.0,0.0046887]
[1763226550715,0.05726,95976.0,95975.0,0.0046887]
[1763226551022,0.05761,95967.0,95940.0,0.53492901]
[1763226551217,0.3608,95967.0,95966.0,0.04415051]
[1763226551416,0.3598,95967.0,95966.0,0.04415051]
[1763226552318,0.40275,95967.0,95966.0,0.00126051]
[1763226552719,0.40282578,95967.0,95966.0,0.00126051]
[1763226554915,0.40282578,95967.0,95966.0,0.04601051]
[1763226555124,0.35887578,95967.0,95966.0,0.04601051]
[1763226555918,0.40282578,95967.0,95966.0,0.04601051]
[1763226556114,0.40282578,95967.0,95966.0,0.00126051]
[1763226557419,0.40282578,95967.0,95966.0,0.04601051]
[1763226557420,0.38158578,95967.0,95966.0,0.04601051]
[1763226557919,0.40282578,95967.0,95966.0,0.04601051]
[1763226558827,0.40282578,95967.0,95966.0,0.00126051]
[1763226560326,0.40282578,95967.0,95966.0,0.00026051]
[1763226560526,0.40282578,95967.0,95966.0,0.00126051]
[1763226561116,0.40282578,95967.0,95966.0,0.00026051]
[1763226561322,0.40282578,95967.0,95940.0,0.17412901]
[1763226561621,0.04614803,95950.0,95949.0,0.04475]
[1763226561822,0.04623104,95950.0,95949.0,0.04475]
[1763226564326,0.04623104,95950.0,95949.0,0.04575]
[1763226564529,8.301e-05,95950.0,95949.0,0.05891]
[1763226564828,0.00015633,95963.0,95962.0,0.04475]
[1763226565027,0.02286633,95963.0,95962.0,0.04475]
[1763226565929,0.00029075,95963.0,95962.0,0.04475]
[1763226566732,0.02300075,95963.0,95962.0,0.04475]
[1763226567032,0.04395,95961.0,95960.0,0.00073197]
[1763226567538,0.04395,95961.0,95960.0,0.04548197]
[1763226568739,0.04395,95961.0,95960.0,0.04648197]
[1763226569437,0.02271,95961.0,95960.0,0.04648197]
[1763226569826,0.00029075,95963.0,95960.0,0.04748197]
[1763226570031,0.00029075,95963.0,95962.0,0.04469]
[1763226570231,7.5e-07,95963.0,95962.0,0.04469]
[1763226570442,0.3588,95967.0,95966.0,0.04469]
[1763226570632,0.3608,95984.0,95960.0,0.00273197]
[1763226570633,0.04504,95984.0,95983.0,0.04469]
[1763226570832,0.3608,95984.0,95983.0,0.04469]
[1763226573541,0.3608,95984.0,95983.0,0.04669]
[1763226574243,0.3608,95984.0,95983.0,0.04569]
[1763226574244,0.3838,95984.0,95983.0,0.04569]
[1763226574546,0.3838,95984.0,95983.0,0.04769]
[1763226575441,0.3608,95984.0,95983.0,0.04769]
[1763226575740,0.3608,95984.0,95983.0,0.04569]
[1763226575941,0.3608,95984.0,95983.0,0.04769]
[1763226576742,0.3608,95984.0,95983.0,0.04669]
[1763226576948,0.00015633,95993.0,95992.0,0.04469]
[1763226577748,0.3608,96004.0,95992.0,0.04469]
[1763226577945,0.3608,96004.0,96003.0,0.0574]
[1763226579848,0.40584,96004.0,96003.0,0.0574]
[1763226580049,0.3608,96004.0,96003.0,0.0574]
[1763226580251,0.0002604,96006.0,96005.0,0.04469]
[1763226581445,0.00219803,96010.0,96009.0,0.04469]
[1763226581650,0.04723803,96010.0,96009.0,0.02206]
[1763226582147,0.04723803,96010.0,96009.0,0.04469]
[1763226582952,0.04823803,96010.0,96009.0,0.04469]
[1763226583153,0.04923803,96010.0,96009.0,0.04469]
[1763226587355,0.04823803,96010.0,96009.0,0.04669]
[1763226587854,0.04823803,96010.0,96009.0,0.04569]
[1763226588152,0.04723803,96010.0,96009.0,0.04769]
[1763226588956,0.04723803,96010.0,96009.0,0.04669]
[1763226589260,0.04723803,96010.0,96009.0,0.02406]
[1763226589554,0.04723803,96010.0,96009.0,0.04669]
[1763226590053,0.04723803,96010.0,96009.0,0.04569]
[1763226590757,0.04723803,96010.0,96009.0,0.001]
[1763226592058,0.04723803,96010.0,96009.0,0.02206]